Workbook

Sheet Celkový
A1: Rozpis etap Závodu Míru 2023
A3: Etapa | B3: Datum | C3: Start | D3: Délka (km) | E3: Převýšení (m) | F3: Start-čas | G3: Cíl-místo | H3: Cíl-čas
A4: Prolog | B4: 2023-06-08 | C4: Jeseník | D4: =prolog!E28 -> 3.1 | E4: 25 | F4: 17:00:00 | G4: Jeseník
A5: 1. | B5: 2023-06-09 | C5: Jeseník | D5: ='01_Jeseník-Rýmařov'!E101 -> 122.8 | E5: 2086 | F5: ='01_Jeseník-Rýmařov'!G15 -> 13:30:00 | G5: Rýmařov | H5: ='01_Jeseník-Rýmařov'!G101 -> 16:30 - 16:48
A6: 2. | B6: 2023-06-10 | C6: Bruntál | D6: ='02-Bruntál-Červenohorské sedlo'!E84 -> 129 | E6: 2819 | F6: ='02-Bruntál-Červenohorské sedlo'!G15 -> 12:00:00 | G6: Červenohorské sedlo | H6: ='02-Bruntál-Červenohorské sedlo'!G84 -> 15:07 - 15:26
A7: 3. | B7: 2023-06-11 | C7: Jeseník | D7: ='03-Jeseník-Jeseník'!E85 -> 166.1 | E7: 2721 | F7: ='03-Jeseník-Jeseník'!G15 -> 11:00:00 | G7: Jeseník | H7: ='03-Jeseník-Jeseník'!G85 -> 145:08 - 15:33
C8: Celkem | D8: =SUM(D4:D7) -> 421 | E8: =SUM(E4:E7) -> 7651

Sheet prolog
A1: Časový plán etapy:
A3: Prologue Jeseník, 8.6.2023
A5: čas startu etapy
A6: slavnostní start | C6: 17:00:00
A7: ostrý start hh:mm | C7: 17:00:00
A9: průměrné rychlosti (km/h)
A10: a | C10: 42
A11: b | C11: 38
B13: poznámka | C13: místo | D13: kilometr + neutral | E13: ostrá etapa | F13: kilometr do cíle | G13: rozsah časů | H13: čas absolutní a | I13: čas absolutní b | J13: čas relativní a | K13: čas relativní b
C14: ITINERÁŘ | D14: (km) | E14: (km) | F14: (km) | G14: (hh:mm - hh:mm) | H14: (hh:mm) | I14: (hh:mm) | J14: (hh:mm) | K14: (hh:mm)
A15: START | B15: Slavnostní start | C15: Jeseník, Masarykovo sq. | G15: 17:00:00 | H15: 17:00:00 | I15: 17:00:00 | J15: 00:00:00 | K15: 00:00:00
B16: rovně | C16: st. Tyršova | D16: 0.1 | E16: 0.1 | F16: =$E$28-E16 -> 3 | G16: =TEXT(H16,"h:mm")&" - "&TEXT(I16,"h:mm") -> 17:00 - 17:00 | H16: =$C$7+J16 -> 17:00:00 | I16: 17:00:00 | J16: =TEXT(E16/$C$10/24,"h:mm") -> 0:00 | K16: =TEXT(E16/$C$11/24,"h:mm") -> 0:00
B17: rovně | C17: crossroad | D17: 0.2 | E17: 0.2 | F17: 2.9 | G17: 17:00 - 17:00 | H17: 17:00:00 | I17: 17:00:00 | J17: 0:00 | K17: 0:00
B18: vlevo | C18: st. Tyršova | D18: 0.8 | E18: 0.8 | F18: 2.3 | G18: 17:01 - 17:01 | H18: 17:01:00 | I18: 17:01:00 | J18: 0:01 | K18: 0:01
B19: vpravo | C19: st. Puškinova | D19: 0.9 | E19: 0.9 | F19: 2.2 | G19: 17:01 - 17:01 | H19: 17:01:00 | I19: 17:01:00 | J19: 0:01 | K19: 0:01
B20: vlevo | C20: st. Lipovská | D20: 1 | E20: 1 | F20: 2.1 | G20: 17:01 - 17:01 | H20: 17:01:00 | I20: 17:01:00 | J20: 0:01 | K20: 0:01
B21: vlevo | C21: st Jaroslava Ježka | D21: 1.2 | E21: 1.2 | F21: 1.9 | G21: 17:01 - 17:01 | H21: 17:01:00 | I21: 17:01:00 | J21: 0:01 | K21: 0:01
B22: vlevo | C22: st. Denisova | D22: 1.6 | E22: 1.6 | F22: 1.5 | G22: 17:02 - 17:02 | H22: 17:02:00 | I22: 17:02:00 | J22: 0:02 | K22: 0:02
B23: rovně | C23: st. Dukelská | D23: 1.6 | E23: 1.6 | F23: 1.5 | G23: 17:02 - 17:02 | H23: 17:02:00 | I23: 17:02:00 | J23: 0:02 | K23: 0:02
B24: rovně | C24: crossroad | D24: 2.2 | E24: 2.2 | F24: 0.9 | G24: 17:03 - 17:03 | H24: 17:03:00 | I24: =$C$7+K24 -> 17:03:00 | J24: 0:03 | K24: 0:03
B25: vlevo | C25: st. Dukelská | D25: 2.6 | E25: 2.6 | F25: 0.5 | G25: 17:03 - 17:04 | H25: 17:03:00 | I25: 17:04:00 | J25: 0:03 | K25: 0:04
B26: vpravo | C26: st. Gogolova | D26: 2.7 | E26: 2.7 | F26: 0.4 | G26: 17:03 - 17:04 | H26: 17:03:00 | I26: 17:04:00 | J26: 0:03 | K26: 0:04
B27: vpravo | C27: st. Tyršova | D27: 2.8 | E27: 2.8 | F27: 0.3 | G27: 17:04 - 17:04 | H27: 17:04:00 | I27: 17:04:00 | J27: 0:04 | K27: 0:04
A28: FINISH | C28: Masarykovo sq. | D28: 3.1 | E28: 3.1 | F28: 0 | G28: =TEXT(H28,"h:mm")&" - "&TEXT(I28,"h:mm") -> 17:04 - 17:04 | H28: =$C$7+J28 -> 17:04:00 | I28: 17:04:00 | J28: =TEXT(E28/$C$10/24,"h:mm") -> 0:04 | K28: =TEXT(E28/$C$11/24,"h:mm") -> 0:04

Sheet 01_Jeseník-Rýmařov
A1: Časový plán etapy:
A3: 1. etapa Jeseník – Rýmařov, 9.6.2023
A5: čas startu etapy
A6: slavnostní start | C6: 13:30:00
A7: ostrý start hh:mm | C7: 13:35:00
A9: průměrné rychlosti (km/h)
A10: a | C10: 42
A11: b | C11: 38
B13: poznámka | C13: místo | D13: kilometr + neutral | E13: ostrá etapa | F13: kilometr do cíle | G13: rozsah časů | H13: čas absolutní a | I13: čas absolutní b | J13: čas relativní a | K13: čas relativní b
C14: ITINERÁŘ | D14: (km) | E14: (km) | F14: (km) | G14: (hh:mm - hh:mm) | H14: (hh:mm) | I14: (hh:mm) | J14: (hh:mm) | K14: (hh:mm)
A15: START | B15: Slavnostní start | C15: Jeseník, Masarykovo sq. | G15: 13:30:00 | H15: 13:30:00 | I15: 13:30:00 | J15: 00:00:00 | K15: 00:00:00
B16: vpravo | C16: roundabout | D16: 0.3
B17: rovně | C17: Šumperská crossroad | D17: 2.4
B18: OSTRÝ START | C18: after the crossroad | D18: 2.6 | E18: =D18-2.6 -> 0 | F18: =$E$101-E18 -> 122.8 | G18: =TEXT(H18,"h:mm")&" - "&TEXT(I18,"h:mm") -> 13:35 - 13:35 | H18: =$C$7+J18 -> 13:35:00 | I18: =$C$7+K18 -> 13:35:00 | J18: =TEXT(E18/$C$10/24,"h:mm") -> 0:00 | K18: =TEXT(E18/$C$11/24,"h:mm") -> 0:00
B19: rovně | C19: Domašov crossroad | D19: 6.4 | E19: =D19-2.6 -> 3.8 | F19: 119 | G19: =TEXT(H19,"h:mm")&" - "&TEXT(I19,"h:mm") -> 13:40 - 13:41 | H19: =$C$7+J19 -> 13:40:00 | I19: =$C$7+K19 -> 13:41:00 | J19: 0:05 | K19: 0:06
B20: slightly right. (po hlavní) | C20: Bělá p.P. crossroad | D20: 8.4 | E20: 5.8 | F20: 117 | G20: 13:43 - 13:44 | H20: 13:43:00 | I20: 13:44:00 | J20: 0:08 | K20: 0:09
A21: GPM | B21: 1010 m.n.m. | D21: 17.4 | E21: 14.8 | F21: 108 | G21: =TEXT(H21,"h:mm")&" - "&TEXT(I21,"h:mm") -> 13:56 - 13:58 | H21: =$C$7+J21 -> 13:56:00 | I21: =$C$7+K21 -> 13:58:00 | J21: 0:21 | K21: 0:23
C22: KOUTY NAD DESNOU | D22: 26.2 | E22: 23.6 | F22: 99.2 | G22: 14:08 - 14:12 | H22: 14:08:00 | I22: 14:12:00 | J22: 0:33 | K22: 0:37
B23: rovně | C23: crossroad | D23: 27.3 | E23: 24.7 | F23: 98.1 | G23: 14:10 - 14:14 | H23: 14:10:00 | I23: 14:14:00 | J23: 0:35 | K23: 0:39
C24: LOUČNÁ NAD DESNOU | D24: 27.6 | E24: 25 | F24: 97.8 | G24: 14:10 - 14:14 | H24: 14:10:00 | I24: 14:14:00 | J24: 0:35 | K24: 0:39
B25: railway crossing | D25: 27.7 | E25: 25.1 | F25: 97.7 | G25: 14:10 - 14:14 | H25: 14:10:00 | I25: 14:14:00 | J25: 0:35 | K25: 0:39
B26: rovně | C26: crossroad | D26: 28.6 | E26: 26 | F26: 96.8 | G26: 14:12 - 14:16 | H26: 14:12:00 | I26: 14:16:00 | J26: 0:37 | K26: 0:41
B27: rovně | C27: crossroad | D27: 30.28 | E27: 27.68 | F27: 95.12 | G27: 14:14 - 14:18 | H27: 14:14:00 | I27: 14:18:00 | J27: 0:39 | K27: 0:43
B28: rovně | C28: Filipová crossroad | D28: 33.1 | E28: 30.5 | F28: 92.3 | G28: 14:18 - 14:23 | H28: 14:18:00 | I28: =$C$7+K28 -> 14:23:00 | J28: 0:43 | K28: 0:48
B29: doleva | C29: MARŠÍKOV crossroad | D29: 35.5 | E29: 32.9 | F29: 89.9 | G29: 14:22 - 14:26 | H29: 14:22:00 | I29: 14:26:00 | J29: 0:47 | K29: 0:51
B30: rovně | C30: Maršíkov | D30: 35.6 | E30: 33 | F30: 89.8 | G30: 14:22 - 14:27 | H30: 14:22:00 | I30: 14:27:00 | J30: 0:47 | K30: 0:52
B31: rovně | C31: Maršíkov | D31: 36.1 | E31: 33.5 | F31: 89.3 | G31: 14:22 - 14:27 | H31: 14:22:00 | I31: 14:27:00 | J31: 0:47 | K31: 0:52
B32: doprava | D32: 36.3 | E32: 33.7 | F32: 89.1 | G32: 14:23 - 14:28 | H32: 14:23:00 | I32: 14:28:00 | J32: 0:48 | K32: 0:53
B33: doleva | C33: crossroad | D33: 36.4 | E33: 33.8 | F33: 89 | G33: 14:23 - 14:28 | H33: 14:23:00 | I33: 14:28:00 | J33: 0:48 | K33: 0:53
B34: doprava | C34: crossroad | D34: 36.6 | E34: 34 | F34: 88.8 | G34: 14:23 - 14:28 | H34: 14:23:00 | I34: 14:28:00 | J34: 0:48 | K34: 0:53
B35: OSTŘE DOLEVA! | C35: crossroad | D35: 37.6 | E35: 35 | F35: 87.8 | G35: 14:25 - 14:30 | H35: 14:25:00 | I35: 14:30:00 | J35: 0:50 | K35: 0:55
B36: doprava | C36: crossroad | D36: 38.5 | E36: 35.9 | F36: 86.9 | G36: 14:26 - 14:31 | H36: 14:26:00 | I36: 14:31:00 | J36: 0:51 | K36: 0:56
C37: SOBOTÍN | D37: 38.8 | E37: 36.2 | F37: 86.6 | G37: 14:26 - 14:32 | H37: 14:26:00 | I37: 14:32:00 | J37: 0:51 | K37: 0:57
B38: rovně | C38: sobotín crossroad | D38: 39.1 | E38: 36.5 | F38: 86.3 | G38: 14:27 - 14:32 | H38: 14:27:00 | I38: 14:32:00 | J38: 0:52 | K38: 0:57
B39: doprava | C39: sobotín crosssroad | D39: 40.4 | E39: 37.8 | F39: 85 | G39: 14:29 - 14:34 | H39: 14:29:00 | I39: 14:34:00 | J39: 0:54 | K39: 0:59
B40: doprava | C40: crossroad | D40: 41 | E40: 38.4 | F40: 84.4 | G40: 14:29 - 14:35 | H40: 14:29:00 | I40: 14:35:00 | J40: 0:54 | K40: 1:00
B41: doleva | C41: crossroad | D41: 41.14 | E41: 38.54 | F41: 84.26 | G41: 14:30 - 14:35 | H41: 14:30:00 | I41: 14:35:00 | J41: 0:55 | K41: 1:00
B42: rovně | C42: crossroad | D42: 43.1 | E42: 40.5 | F42: 82.3 | G42: 14:32 - 14:38 | H42: 14:32:00 | I42: 14:38:00 | J42: 0:57 | K42: 1:03
C43: SKŘÍTEK | D43: 52.8 | E43: 50.2 | F43: 72.6 | G43: 14:46 - 14:54 | H43: 14:46:00 | I43: 14:54:00 | J43: 1:11 | K43: 1:19
A44: GPM | B44: 891 m.n.m. | D44: 52.1 | E44: 49.5 | F44: 73.3 | G44: 14:45 - 14:53 | H44: 14:45:00 | I44: 14:53:00 | J44: 1:10 | K44: 1:18
C45: STARÁ VES ŽĎÁRSKÝ POTOK | D45: 59.5 | E45: 56.9 | F45: 65.9 | G45: 14:56 - 15:04 | H45: 14:56:00 | I45: 15:04:00 | J45: 1:21 | K45: 1:29
C46: STARÁ VES | D46: 62.1 | E46: 59.5 | F46: 63.3 | G46: 15:00 - 15:08 | H46: 15:00:00 | I46: 15:08:00 | J46: 1:25 | K46: 1:33
C47: RÝMAŘOV JANOVICE | D47: 62.9 | E47: 60.3 | F47: 62.5 | G47: 15:01 - 15:10 | H47: 15:01:00 | I47: 15:10:00 | J47: 1:26 | K47: 1:35
B48: doleva | C48: st. Opavská crossroad | D48: 66.1 | E48: 63.5 | F48: 59.3 | G48: =TEXT(H48,"h:mm")&" - "&TEXT(I48,"h:mm") -> 15:05 - 15:15 | H48: 15:05:00 | I48: 15:15:00 | J48: 1:30 | K48: 1:40
B49: rovně | C49: crossroad | D49: 69.5 | E49: 66.9 | F49: 55.9 | G49: 15:10 - 15:20 | H49: 15:10:00 | I49: 15:20:00 | J49: 1:35 | K49: 1:45
B50: rovně | C50: DOLNÍ MORAVICE | D50: 71.8 | E50: 69.2 | F50: 53.6 | G50: 15:13 - 15:24 | H50: 15:13:00 | I50: 15:24:00 | J50: 1:38 | K50: 1:49
B51: doleva | C51: route 445 crossroad | D51: 73 | E51: 70.4 | F51: =$E$101-E51 -> 52.4 | G51: 15:15 - 15:26 | H51: 15:15:00 | I51: 15:26:00 | J51: =TEXT(E51/$C$10/24,"h:mm") -> 1:40 | K51: =TEXT(E51/$C$11/24,"h:mm") -> 1:51
B52: doprava | C52: odbočka | D52: 73.6 | E52: 71 | F52: 51.8 | G52: 15:16 - 15:27 | H52: 15:16:00 | I52: 15:27:00 | J52: 1:41 | K52: 1:52 | L52: ?
B53: doprava | C53: odbočka | D53: 75.9 | E53: 73.3 | F53: 49.5 | G53: 15:19 - 15:30 | H53: 15:19:00 | I53: 15:30:00 | J53: 1:44 | K53: 1:55
B54: doprava | C54: VÁCLAVOV U BRUNTÁLU crossroad | D54: 78.3 | E54: 75.7 | F54: 47.1 | G54: 15:23 - 15:34 | H54: 15:23:00 | I54: 15:34:00 | J54: 1:48 | K54: 1:59
C55: MALÁ ŠTÁHLE | D55: 82.5 | E55: 79.9 | F55: 42.9 | G55: 15:29 - 15:41 | H55: 15:29:00 | I55: 15:41:00 | J55: 1:54 | K55: 2:06
C56: RÝMAŘOV | D56: 87.5 | E56: 84.9 | F56: 37.9 | G56: 15:36 - 15:49 | H56: 15:36:00 | I56: 15:49:00 | J56: 2:01 | K56: 2:14
B57: vlevo | C57: crossroad st. Opavská | D57: 88.4 | E57: 85.8 | F57: 37 | G57: 15:37 - 15:50 | H57: 15:37:00 | I57: 15:50:00 | J57: 2:02 | K57: 2:15
B58: rovně | C58: crossroad | D58: 88.6 | E58: 86 | F58: 36.8 | G58: 15:37 - 15:50 | H58: 15:37:00 | I58: 15:50:00 | J58: 2:02 | K58: 2:15
B59: rovně | C59: st. Třída hrdinů | D59: 88.7 | E59: 86.1 | F59: 36.7 | G59: 15:38 - 15:50 | H59: 15:38:00 | I59: 15:50:00 | J59: 2:03 | K59: 2:15
A60: 1. ROUND | B60: vlevo a vpravo | C60: náměstí Míru | D60: 89 | E60: 86.4 | F60: 36.4 | G60: 15:38 - 15:51 | H60: 15:38:00 | I60: 15:51:00 | J60: 2:03 | K60: 2:16
B61: vlevo a hned vpravo | C61: st. Jungmanova | D61: 89 | E61: 86.4 | F61: 36.4 | G61: 15:38 - 15:51 | H61: 15:38:00 | I61: 15:51:00 | J61: 2:03 | K61: 2:16
B62: vlevo | C62: st. Havlíčkova | D62: 89.1 | E62: 86.5 | F62: 36.3 | G62: 15:38 - 15:51 | H62: 15:38:00 | I62: 15:51:00 | J62: 2:03 | K62: 2:16
B63: doprava | C63: st. Sokolovská | D63: 90 | E63: 87.4 | F63: 35.4 | G63: 15:39 - 15:53 | H63: 15:39:00 | I63: 15:53:00 | J63: 2:04 | K63: 2:18
B64: doprava | C64: odbočka | D64: 90.21 | E64: 87.61 | F64: 35.19 | G64: 15:40 - 15:53 | H64: 15:40:00 | I64: 15:53:00 | J64: 2:05 | K64: 2:18
B65: doleva | C65: st. Rýmařovská | D65: 91.6 | E65: 89 | F65: 33.8 | G65: 15:42 - 15:55 | H65: 15:42:00 | I65: 15:55:00 | J65: 2:07 | K65: 2:20
B66: doleva nahoru | C66: st. Panská | D66: 91.75 | E66: 89.15 | F66: 33.65 | G66: 15:42 - 15:55 | H66: 15:42:00 | I66: 15:55:00 | J66: 2:07 | K66: 2:20
B67: doprava | C67: odbočka | D67: 92.85 | E67: 90.25 | F67: 32.55 | G67: 15:43 - 15:57 | H67: 15:43:00 | I67: 15:57:00 | J67: 2:08 | K67: 2:22
B68: doleva | C68: crossroad | D68: 94.3 | E68: 91.7 | F68: 31.1 | G68: 15:46 - 15:59 | H68: 15:46:00 | I68: 15:59:00 | J68: 2:11 | K68: 2:24
C69: SKÁLY | D69: 96.18 | E69: =D69-2.6 -> 93.58 | F69: 29.22 | G69: =TEXT(H69,"h:mm")&" - "&TEXT(I69,"h:mm") -> 15:48 - 16:02 | H69: =$C$7+J69 -> 15:48:00 | I69: =$C$7+K69 -> 16:02:00 | J69: 2:13 | K69: 2:27
B70: doleva | C70: crossroad | D70: 96.6 | E70: 94 | F70: 28.8 | G70: 15:49 - 16:03 | H70: 15:49:00 | I70: 16:03:00 | J70: 2:14 | K70: 2:28
B71: doprava | C71: RÝMAŘOV odbočka | D71: 99.3 | E71: 96.7 | F71: 26.1 | G71: 15:53 - 16:07 | H71: 15:53:00 | I71: 16:07:00 | J71: 2:18 | K71: 2:32
B72: doleva | C72: crossroad | D72: 100.7 | E72: 98.1 | F72: 24.7 | G72: 15:55 - 16:09 | H72: 15:55:00 | I72: 16:09:00 | J72: 2:20 | K72: 2:34
A73: SPRINT | B73: průjezd clem | D73: 100.7 | E73: 98.1 | F73: 24.7 | G73: 15:55 - 16:09 | H73: 15:55:00 | I73: 16:09:00 | J73: 2:20 | K73: 2:34
A74: 2. ROUND | B74: vlevo a vpravo | C74: náměstí Míru | D74: 101.1 | E74: 98.5 | F74: 24.3 | G74: 15:55 - 16:10 | H74: 15:55:00 | I74: 16:10:00 | J74: 2:20 | K74: 2:35
B75: vlevo a hned vpravo | C75: st. Jungmanova | D75: 101.2 | E75: 98.6 | F75: 24.2 | G75: 15:55 - 16:10 | H75: 15:55:00 | I75: 16:10:00 | J75: 2:20 | K75: 2:35
B76: vlevo | C76: st. Havlíčkova | D76: 101.2 | E76: 98.6 | F76: 24.2 | G76: 15:55 - 16:10 | H76: 15:55:00 | I76: 16:10:00 | J76: 2:20 | K76: 2:35
B77: doprava | C77: st. Sokolovská | D77: 102.1 | E77: 99.5 | F77: 23.3 | G77: 15:57 - 16:12 | H77: 15:57:00 | I77: 16:12:00 | J77: 2:22 | K77: 2:37
B78: doprava | C78: odbočka | D78: 102.3 | E78: 99.7 | F78: 23.1 | G78: 15:57 - 16:12 | H78: 15:57:00 | I78: 16:12:00 | J78: 2:22 | K78: 2:37
B79: doleva | C79: st. Rýmařovská | D79: 103.7 | E79: 101.1 | F79: 21.7 | G79: 15:59 - 16:14 | H79: 15:59:00 | I79: 16:14:00 | J79: 2:24 | K79: 2:39
B80: doleva nahoru | C80: st. Panská | D80: 103.9 | E80: 101.3 | F80: 21.5 | G80: 15:59 - 16:14 | H80: 15:59:00 | I80: 16:14:00 | J80: 2:24 | K80: 2:39
B81: doprava | C81: odbočka | D81: 105 | E81: 102.4 | F81: 20.4 | G81: 16:01 - 16:16 | H81: 16:01:00 | I81: 16:16:00 | J81: 2:26 | K81: 2:41
B82: doleva | C82: crossroad | D82: 106.4 | E82: 103.8 | F82: 19 | G82: 16:03 - 16:18 | H82: 16:03:00 | I82: 16:18:00 | J82: 2:28 | K82: 2:43
C83: SKÁLY | D83: 108.3 | E83: 105.7 | F83: 17.1 | G83: 16:06 - 16:21 | H83: 16:06:00 | I83: 16:21:00 | J83: 2:31 | K83: 2:46
B84: doleva | C84: crossroad | D84: 108.7 | E84: 106.1 | F84: =$E$101-E84 -> 16.7 | G84: 16:06 - 16:22 | H84: 16:06:00 | I84: 16:22:00 | J84: =TEXT(E84/$C$10/24,"h:mm") -> 2:31 | K84: =TEXT(E84/$C$11/24,"h:mm") -> 2:47
B85: doprava | C85: RÝMAŘOV odbočka | D85: 111.4 | E85: 108.8 | F85: 14 | G85: 16:10 - 16:26 | H85: 16:10:00 | I85: 16:26:00 | J85: 2:35 | K85: 2:51
B86: doleva | C86: crossroad | D86: 112.9 | E86: 110.3 | F86: 12.5 | G86: 16:12 - 16:29 | H86: 16:12:00 | I86: 16:29:00 | J86: 2:37 | K86: 2:54
A87: SPRINT | B87: průjezd cílem | D87: 112.9 | E87: 110.3 | F87: 12.5 | G87: 16:12 - 16:29 | H87: 16:12:00 | I87: 16:29:00 | J87: 2:37 | K87: 2:54
A88: 3. ROUND | B88: vlevo a vpravo | C88: náměstí míru | D88: 113.2 | E88: 110.6 | F88: 12.2 | G88: 16:13 - 16:29 | H88: 16:13:00 | I88: 16:29:00 | J88: 2:38 | K88: 2:54
B89: vlevo a hned vpravo | C89: st. Jungmanova | D89: 113.2 | E89: 110.6 | F89: 12.2 | G89: 16:13 - 16:29 | H89: 16:13:00 | I89: 16:29:00 | J89: 2:38 | K89: 2:54
B90: vlevo | C90: st. Havlíčkova | D90: 113.3 | E90: 110.7 | F90: 12.1 | G90: 16:13 - 16:29 | H90: 16:13:00 | I90: 16:29:00 | J90: 2:38 | K90: 2:54
B91: doprava | C91: st. Sokolovská | D91: 114.2 | E91: 111.6 | F91: 11.2 | G91: 16:14 - 16:31 | H91: 16:14:00 | I91: 16:31:00 | J91: 2:39 | K91: 2:56
B92: doprava | C92: odbočka | D92: 114.4 | E92: 111.8 | F92: 11 | G92: 16:14 - 16:31 | H92: 16:14:00 | I92: 16:31:00 | J92: 2:39 | K92: 2:56
B93: doleva | C93: st. Rýmařovská | D93: 115.8 | E93: 113.2 | F93: 9.6 | G93: 16:16 - 16:33 | H93: 16:16:00 | I93: 16:33:00 | J93: 2:41 | K93: 2:58
B94: doleva nahoru | C94: st. Panská | D94: 116 | E94: 113.4 | F94: 9.4 | G94: 16:17 - 16:34 | H94: 16:17:00 | I94: 16:34:00 | J94: 2:42 | K94: 2:59
B95: doprava | C95: odbočka | D95: 117.1 | E95: 114.5 | F95: 8.3 | G95: 16:18 - 16:35 | H95: 16:18:00 | I95: 16:35:00 | J95: 2:43 | K95: 3:00
B96: doleva | C96: crossroad | D96: 118.5 | E96: 115.9 | F96: 6.9 | G96: 16:20 - 16:38 | H96: 16:20:00 | I96: 16:38:00 | J96: 2:45 | K96: 3:03
C97: SKÁLY | D97: 120.4 | E97: 117.8 | F97: 5 | G97: 16:23 - 16:41 | H97: 16:23:00 | I97: 16:41:00 | J97: 2:48 | K97: 3:06
B98: doleva | C98: crossroad | D98: 120.8 | E98: 118.2 | F98: 4.6 | G98: 16:23 - 16:41 | H98: 16:23:00 | I98: 16:41:00 | J98: 2:48 | K98: 3:06
B99: doprava | C99: RÝMAŘOV odbočka | D99: 123.5 | E99: 120.9 | F99: 1.9 | G99: 16:27 - 16:45 | H99: 16:27:00 | I99: 16:45:00 | J99: 2:52 | K99: 3:10
B100: doleva | C100: crossroad | D100: 123.8 | E100: 121.2 | F100: 1.6 | G100: =TEXT(H100,"h:mm")&" - "&TEXT(I100,"h:mm") -> 16:28 - 16:46 | H100: =$C$7+J100 -> 16:28:00 | I100: 16:46:00 | J100: 2:53 | K100: 3:11
A101: FINISH | C101: Rýmařov, Náměstí Míru | D101: 125.4 | E101: =D101-2.6 -> 122.8 | F101: 0 | G101: =TEXT(H101,"h:mm")&" - "&TEXT(I101,"h:mm") -> 16:30 - 16:48 | H101: 16:30:00 | I101: 16:48:00 | J101: 2:55 | K101: 3:13

Sheet 02-Bruntál-Červenohorské sedlo
A1: Časový plán etapy:
A3: 2. etapa Bruntál – Červenohorské sedlo, 10.6.2023
A5: čas startu etapy | C5: 12:00:00
A7: ostrý start hh:mm | C7: 12:03:00
A9: průměrné rychlosti (km/h)
A10: a | C10: 42
A11: b | C11: 38
B13: poznámka | C13: místo | D13: kilometr | E13: ostrá etapa | F13: kilometr do cíle | G13: rozsah časů | H13: čas absolutní a | I13: čas absolutní b | J13: čas relativní a | K13: čas relativní b
C14: ITINERÁŘ | D14: (km) | E14: (km) | F14: (km) | G14: (hh:mm - hh:mm) | H14: (hh:mm) | I14: (hh:mm) | J14: (hh:mm) | K14: (hh:mm)
A15: START | B15: Slavnostní start | C15: Bruntál, náměstí Míru | D15: 0 | G15: 12:00:00 | H15: 12:00:00 | I15: 12:00:00 | J15: 00:00:00 | K15: 00:00:00
B16: rovně | C16: st. Opletalova | D16: 0.1
B17: rovně | C17: st. Revoluční | D17: 0.2
B18: doleva | C18: st. Dukelská | D18: 0.4
B19: vpravo | C19: st. Jesenická | D19: 1
B20: OSTRÝ START | D20: 2 | E20: =D20-2 -> 0 | F20: =$E$84-E20 -> 129 | G20: =TEXT(H20,"h:mm")&" - "&TEXT(I20,"h:mm") -> 12:03 - 12:03 | H20: =$C$7+J20 -> 12:03:00 | I20: =$C$7+K20 -> 12:03:00 | J20: =TEXT(E20/$C$10/24,"h:mm") -> 0:00 | K20: =TEXT(E20/$C$11/24,"h:mm") -> 0:00
C21: VÁCLAVOV U BRUNTÁLU | D21: 8 | E21: =D21-2 -> 6 | F21: 123 | G21: =TEXT(H21,"h:mm")&" - "&TEXT(I21,"h:mm") -> 12:11 - 12:12 | H21: =$C$7+J21 -> 12:11:00 | I21: =$C$7+K21 -> 12:12:00 | J21: =TEXT(E21/$C$10/24,"h:mm") -> 0:08 | K21: =TEXT(E21/$C$11/24,"h:mm") -> 0:09
C22: MALÁ ŠTÁHLE | D22: 12.66 | E22: =D22-2 -> 10.66 | F22: 118.34 | G22: 12:18 - 12:19 | H22: 12:18:00 | I22: 12:19:00 | J22: 0:15 | K22: 0:16
C23: RÝMAŘOV | D23: 17.6 | E23: 15.6 | F23: 113.4 | G23: 12:25 - 12:27 | H23: 12:25:00 | I23: 12:27:00 | J23: 0:22 | K23: 0:24
B24: vlevo | C24: revolucni | D24: 18.46 | E24: 16.46 | F24: 112.54 | G24: 12:26 - 12:28 | H24: 12:26:00 | I24: 12:28:00 | J24: 0:23 | K24: 0:25
B25: mírně doleva | C25: route 445 | D25: 18.8 | E25: 16.8 | F25: 112.2 | G25: 12:27 - 12:29 | H25: 12:27:00 | I25: 12:29:00 | J25: 0:24 | K25: 0:26
B26: vlevo | C26: třída Hrdinů | D26: 19.1 | E26: =D26-2 -> 17.1 | F26: 111.9 | G26: 12:27 - 12:30 | H26: 12:27:00 | I26: 12:30:00 | J26: 0:24 | K26: 0:27
B27: vpravo | C27: st. Oktužní | D27: 19.3 | E27: 17.3 | F27: 111.7 | G27: 12:27 - 12:30 | H27: 12:27:00 | I27: 12:30:00 | J27: 0:24 | K27: 0:27
A28: SPRINT | B28: vedle Lidlu | D28: 19.7 | E28: 17.7 | F28: 111.3 | G28: 12:28 - 12:30 | H28: 12:28:00 | I28: 12:30:00 | J28: 0:25 | K28: 0:27
B29: vlevo | C29: st. Hornoměstská | D29: 20.7 | E29: 18.7 | F29: 110.3 | G29: 12:29 - 12:32 | H29: 12:29:00 | I29: 12:32:00 | J29: 0:26 | K29: 0:29
B30: rovně | C30: crossroad | D30: 22.2 | E30: 20.2 | F30: 108.8 | G30: 12:31 - 12:34 | H30: 12:31:00 | I30: 12:34:00 | J30: 0:28 | K30: 0:31
C31: SKÁLY | D31: 23.14 | E31: 21.14 | F31: 107.86 | G31: 12:33 - 12:36 | H31: 12:33:00 | I31: 12:36:00 | J31: 0:30 | K31: 0:33
C32: TVRDKOV | D32: 27.5 | E32: 25.5 | F32: 103.5 | G32: 12:39 - 12:43 | H32: 12:39:00 | I32: 12:43:00 | J32: 0:36 | K32: 0:40
B33: mírně vpravo | C33: route 370 crossroad | D33: 31.7 | E33: 29.7 | F33: 99.3 | G33: 12:45 - 12:49 | H33: 12:45:00 | I33: 12:49:00 | J33: 0:42 | K33: 0:46
B34: mírně vpravo | C34: route 370 crossroad | D34: 34.9 | E34: 32.9 | F34: 96.1 | G34: 12:50 - 12:54 | H34: 12:50:00 | I34: 12:54:00 | J34: 0:47 | K34: 0:51
B35: vpravo | C35: route 37010 crossroad | D35: 35.7 | E35: 33.7 | F35: 95.3 | G35: 12:51 - 12:56 | H35: 12:51:00 | I35: 12:56:00 | J35: 0:48 | K35: 0:53
C36: OSKAVA | D36: 36.9 | E36: 34.9 | F36: 94.1 | G36: 12:52 - 12:58 | H36: 12:52:00 | I36: 12:58:00 | J36: 0:49 | K36: 0:55
B37: rovně | C37: crossroad | D37: 39 | E37: 37 | F37: 92 | G37: 12:55 - 13:01 | H37: 12:55:00 | I37: 13:01:00 | J37: 0:52 | K37: 0:58
B38: vlevo | C38: route 44633 crossroad | D38: 40.8 | E38: 38.8 | F38: 90.2 | G38: 12:58 - 13:04 | H38: 12:58:00 | I38: 13:04:00 | J38: 0:55 | K38: 1:01
C39: TŘEMŠEK | D39: 41.93 | E39: 39.93 | F39: 89.07 | G39: 13:00 - 13:06 | H39: 13:00:00 | I39: 13:06:00 | J39: 0:57 | K39: 1:03
B40: vpravo | C40: crossroad | D40: 43.3 | E40: 41.3 | F40: 87.7 | G40: 13:02 - 13:08 | H40: 13:02:00 | I40: 13:08:00 | J40: 0:59 | K40: 1:05
A41: GPM | B41: 556 m.n.m. | D41: 43.9 | E41: 41.9 | F41: 87.1 | G41: 13:02 - 13:09 | H41: 13:02:00 | I41: 13:09:00 | J41: 0:59 | K41: 1:06
B42: vpravo | C42: route 44631 crossroad | D42: 48.6 | E42: 46.6 | F42: 82.4 | G42: 13:09 - 13:16 | H42: 13:09:00 | I42: 13:16:00 | J42: 1:06 | K42: 1:13
B43: doleva | C43: odbočka | D43: 54 | E43: 52 | F43: 77 | G43: 13:17 - 13:25 | H43: 13:17:00 | I43: 13:25:00 | J43: 1:14 | K43: 1:22
C44: NOVÝ MALÍN | D44: 54.4 | E44: 52.4 | F44: 76.6 | G44: 13:17 - 13:25 | H44: 13:17:00 | I44: 13:25:00 | J44: 1:14 | K44: 1:22
B45: vpravo | C45: route 44632 crossroad | D45: 56 | E45: 54 | F45: 75 | G45: 13:20 - 13:28 | H45: 13:20:00 | I45: 13:28:00 | J45: 1:17 | K45: 1:25
B46: railway crossing | D46: 56.5 | E46: 54.5 | F46: 74.5 | G46: 13:20 - 13:29 | H46: 13:20:00 | I46: 13:29:00 | J46: 1:17 | K46: 1:26
B47: vpravo | C47: route 44638 crossroad | D47: 58.7 | E47: 56.7 | F47: 72.3 | G47: 13:24 - 13:32 | H47: 13:24:00 | I47: 13:32:00 | J47: 1:21 | K47: 1:29
C48: KRÁSNÉ | D48: 60 | E48: 58 | F48: 71 | G48: 13:25 - 13:34 | H48: 13:25:00 | I48: 13:34:00 | J48: 1:22 | K48: 1:31
C49: HRABĚŠICE | D49: 61.36 | E49: 59.36 | F49: 69.64 | G49: 13:27 - 13:36 | H49: 13:27:00 | I49: 13:36:00 | J49: 1:24 | K49: 1:33
B50: vlevo | C50: crossroad | D50: 61.7 | E50: 59.7 | F50: 69.3 | G50: 13:28 - 13:37 | H50: 13:28:00 | I50: 13:37:00 | J50: 1:25 | K50: 1:34
A51: GPM | B51: 616 m.n.m. | D51: 63.8 | E51: 61.8 | F51: 67.2 | G51: 13:31 - 13:40 | H51: 13:31:00 | I51: 13:40:00 | J51: 1:28 | K51: 1:37
B52: vlevo | C52: crossroad | D52: 65.11 | E52: 63.11 | F52: =$E$84-E52 -> 65.89 | G52: 13:33 - 13:42 | H52: 13:33:00 | I52: 13:42:00 | J52: 1:30 | K52: 1:39
B53: vlevo | C53: route 11 crossroad | D53: 66.1 | E53: 64.1 | F53: 64.9 | G53: 13:34 - 13:44 | H53: 13:34:00 | I53: 13:44:00 | J53: 1:31 | K53: 1:41
C54: SOBOTÍN | D54: 69 | E54: 67 | F54: 62 | G54: 13:38 - 13:48 | H54: 13:38:00 | I54: 13:48:00 | J54: 1:35 | K54: 1:45
C55: petrov nad desnou | D55: 70.5 | E55: 68.5 | F55: 60.5 | G55: 13:40 - 13:51 | H55: 13:40:00 | I55: 13:51:00 | J55: 1:37 | K55: 1:48
B56: vpravo | C56: route 01122 crossroad | D56: 72.5 | E56: 70.5 | F56: 58.5 | G56: 13:43 - 13:54 | H56: 13:43:00 | I56: 13:54:00 | J56: 1:40 | K56: 1:51
B57: rovně a vpravo smer jeseník | C57: st. Jesenická | D57: 73.7 | E57: 71.7 | F57: 57.3 | G57: 13:45 - 13:56 | H57: 13:45:00 | I57: 13:56:00 | J57: 1:42 | K57: 1:53
C58: VELKÉ LOSINY | D58: 75 | E58: 73 | F58: 56 | G58: 13:47 - 13:58 | H58: 13:47:00 | I58: 13:58:00 | J58: 1:44 | K58: 1:55
B59: vlevo | C59: st. Zámecká | D59: 75.4 | E59: 73.4 | F59: 55.6 | G59: 13:47 - 13:58 | H59: 13:47:00 | I59: 13:58:00 | J59: 1:44 | K59: 1:55
B60: vpravo | C60: st zamecka | D60: 76 | E60: 74 | F60: 55 | G60: 13:48 - 13:59 | H60: 13:48:00 | I60: 13:59:00 | J60: 1:45 | K60: 1:56
B61: rovně | C61: crossroad | D61: 77.4 | E61: 75.4 | F61: 53.6 | G61: 13:50 - 14:02 | H61: 13:50:00 | I61: 14:02:00 | J61: 1:47 | K61: 1:59
C62: žárová | D62: 79.4 | E62: 77.4 | F62: 51.6 | G62: 13:53 - 14:05 | H62: 13:53:00 | I62: 14:05:00 | J62: 1:50 | K62: 2:02
B63: doprava | C63: crossroad | D63: 80.41 | E63: 78.41 | F63: 50.59 | G63: 13:55 - 14:06 | H63: 13:55:00 | I63: 14:06:00 | J63: 1:52 | K63: 2:03
B64: doprava 2x | C64: crossroad | D64: 81.8 | E64: 79.8 | F64: 49.2 | G64: 13:57 - 14:09 | H64: 13:57:00 | I64: 14:09:00 | J64: 1:54 | K64: 2:06
B65: rovně | C65: crossroad | D65: 83.7 | E65: 81.7 | F65: 47.3 | G65: 13:59 - 14:12 | H65: 13:59:00 | I65: 14:12:00 | J65: 1:56 | K65: 2:09
C66: pusté žibřidovice | D66: 85 | E66: 83 | F66: 46 | G66: 14:01 - 14:14 | H66: 14:01:00 | I66: 14:14:00 | J66: 1:58 | K66: 2:11
B67: vpravo | C67: route 3697 | D67: 85.8 | E67: 83.8 | F67: 45.2 | G67: 14:02 - 14:15 | H67: 14:02:00 | I67: 14:15:00 | J67: 1:59 | K67: 2:12
B68: doprava po hlavni | D68: 86.7 | E68: 84.7 | F68: 44.3 | G68: 14:04 - 14:16 | H68: 14:04:00 | I68: 14:16:00 | J68: 2:01 | K68: 2:13
C69: jindrichov | D69: 87.4 | E69: 85.4 | F69: 43.6 | G69: 14:05 - 14:17 | H69: 14:05:00 | I69: 14:17:00 | J69: 2:02 | K69: 2:14
B70: vpravo | C70: route 369 crossroad | D70: 87.5 | E70: 85.5 | F70: 43.5 | G70: 14:05 - 14:18 | H70: 14:05:00 | I70: 14:18:00 | J70: 2:02 | K70: 2:15
C71: nove losiny | D71: 89.4 | E71: 87.4 | F71: 41.6 | G71: 14:07 - 14:21 | H71: 14:07:00 | I71: 14:21:00 | J71: 2:04 | K71: 2:18
B72: vpravo | C72: route 3696 trojkamen crossroad | D72: 90 | E72: 88 | F72: 41 | G72: 14:08 - 14:21 | H72: 14:08:00 | I72: 14:21:00 | J72: 2:05 | K72: 2:18
C73: přemyslov | D73: 95 | E73: 93 | F73: 36 | G73: 14:15 - 14:29 | H73: 14:15:00 | I73: 14:29:00 | J73: 2:12 | K73: 2:26
B74: vpravo | C74: route 44 crossroad | D74: 99 | E74: 97 | F74: 32 | G74: 14:21 - 14:36 | H74: 14:21:00 | I74: 14:36:00 | J74: 2:18 | K74: 2:33
A75: SPRINT | B75: Loučná n. Desnou | D75: 99.8 | E75: 97.8 | F75: 31.2 | G75: 14:22 - 14:37 | H75: 14:22:00 | I75: 14:37:00 | J75: 2:19 | K75: 2:34
B76: vlevo | C76: crossroad | D76: 100.2 | E76: 98.2 | F76: 30.8 | G76: 14:23 - 14:38 | H76: 14:23:00 | I76: 14:38:00 | J76: 2:20 | K76: 2:35
B77: vlevo | C77: crossroad | D77: 105.4 | E77: 103.4 | F77: 25.6 | G77: 14:30 - 14:46 | H77: 14:30:00 | I77: 14:46:00 | J77: 2:27 | K77: 2:43
B78: vlevo | D78: 109.8 | E78: 107.8 | F78: 21.2 | G78: 14:37 - 14:53 | H78: 14:37:00 | I78: 14:53:00 | J78: 2:34 | K78: 2:50
A79: GPM | B79: 1177 m.n.m. | D79: 112.1 | E79: 110.1 | F79: 18.9 | G79: 14:40 - 14:56 | H79: 14:40:00 | I79: 14:56:00 | J79: 2:37 | K79: 2:53
B80: vlevo | C80: crossroad | D80: 112.2 | E80: 110.2 | F80: 18.8 | G80: 14:40 - 14:57 | H80: 14:40:00 | I80: 14:57:00 | J80: 2:37 | K80: 2:54
B81: vlevo | C81: crossroad | D81: 116.8 | E81: 114.8 | F81: 14.2 | G81: 14:47 - 15:04 | H81: 14:47:00 | I81: 15:04:00 | J81: 2:44 | K81: 3:01
B82: rovně | C82: crossroad | D82: 117.4 | E82: 115.4 | F82: 13.6 | G82: 14:47 - 15:05 | H82: 14:47:00 | I82: 15:05:00 | J82: 2:44 | K82: 3:02
B83: vpravo | C83: route 44 crossroad | D83: 123.2 | E83: 121.2 | F83: 7.8 | G83: 14:56 - 15:14 | H83: 14:56:00 | I83: 15:14:00 | J83: 2:53 | K83: 3:11
A84: FINISH | B84: 1010 m.n.m. | C84: ČERVENHORSKÉ SEDLO | D84: 131 | E84: 129 | F84: =$E$84-E84 -> 0 | G84: =TEXT(H84,"h:mm")&" - "&TEXT(I84,"h:mm") -> 15:07 - 15:26 | H84: =$C$7+J84 -> 15:07:00 | I84: =$C$7+K84 -> 15:26:00 | J84: =TEXT(E84/$C$10/24,"h:mm") -> 3:04 | K84: =TEXT(E84/$C$11/24,"h:mm") -> 3:23

Sheet 03-Jeseník-Jeseník
A1: Časový plán etapy:
A3: 3. etapa Jeseník – Jeseník, 11. 6. 2023
A5: čas startu etapy
A6: slavnostní start | C6: 11:00:00
A7: ostrý start hh:mm | C7: 11:10:00
A9: průměrné rychlosti (km/h)
A10: a | C10: 42
A11: b | C11: 38
B13: poznámka | C13: místo | D13: kilometr | E13: ostrá etapa | F13: kilometr do cíle | G13: rozsah časů | H13: čas absolutní a | I13: čas absolutní b | J13: čas relativní a | K13: čas relativní b
C14: ITINERÁŘ | D14: (km) | E14: (km) | F14: (km) | G14: (hh:mm - hh:mm) | H14: (hh:mm) | I14: (hh:mm) | J14: (hh:mm) | K14: (hh:mm)
A15: START | B15: Slavnostní start | C15: Jeseník, Masarykovo náměstí | G15: 11:00:00 | H15: 11:00:00 | I15: 11:00:00 | J15: 00:00:00 | K15: 00:00:00
B16: doleva | C16: st. Gogolova | D16: 0.3
B17: vlevo | C17: st. Lipovská | D17: 0.3
B18: vpravo | C18: st. Dukelská | D18: 0.5
B19: vlevo | C19: st. Dukelská | D19: 0.5
B20: vlevo horní cesta | C20: st. Dukelská | D20: 0.6
B21: vlevo | C21: st. Denisova | D21: 1.5
B22: doprava | C22: U Bělidla | D22: 1.7
B23: vpravo | C23: route 60 crossroad | D23: 1.9
B24: OSTRÝ START | D24: 2.8 | E24: =D24-2.8 -> 0 | F24: =$E$85-E24 -> 166.1 | G24: =TEXT(H24,"h:mm")&" - "&TEXT(I24,"h:mm") -> 11:10 - 11:10 | H24: =$C$7+J24 -> 11:10:00 | I24: =$C$7+K24 -> 11:10:00 | J24: =TEXT(E24/$C$10/24,"hh:mm") -> 00:00 | K24: =TEXT(E24/$C$11/24,"hh:mm") -> 00:00
B25: vpravo | C25: route 60 crossroad | D25: 4.9 | E25: =D25-2.8 -> 2.1 | F25: 164 | G25: 11:13 - 11:13 | H25: 11:13:00 | I25: 11:13:00 | J25: 00:03 | K25: 00:03
B26: railway crossing | C26: Vápenka Omya | D26: =E26+2.8 -> 6.9 | E26: 4.1 | F26: 162 | G26: =TEXT(H26,"h:mm")&" - "&TEXT(I26,"h:mm") -> 11:15 - 11:16 | H26: =$C$7+J26 -> 11:15:00 | I26: =$C$7+K26 -> 11:16:00 | J26: 00:05 | K26: 00:06
B27: vlevo | C27: route 60 odbočka | D27: =E27+2.8 -> 12.5 | E27: 9.7 | F27: 156.4 | G27: 11:23 - 11:25 | H27: 11:23:00 | I27: 11:25:00 | J27: 00:13 | K27: 00:15
B28: railway crossing | C28: Vápenná | D28: 12.9 | E28: 10.1 | F28: 156 | G28: 11:24 - 11:25 | H28: 11:24:00 | I28: 11:25:00 | J28: 00:14 | K28: 00:15
B29: railway crossing | C29: Vápenná | D29: 14 | E29: 11.2 | F29: 154.9 | G29: =TEXT(H29,"h:mm")&" - "&TEXT(I29,"h:mm") -> 11:26 - 11:27 | H29: =$C$7+J29 -> 11:26:00 | I29: =$C$7+K29 -> 11:27:00 | J29: 00:16 | K29: 00:17
B30: vpravo | C30: Žulová | D30: 15.8 | E30: 13 | F30: 153.1 | G30: 11:28 - 11:30 | H30: 11:28:00 | I30: 11:30:00 | J30: 00:18 | K30: 00:20
B31: rovně | C31: Žulová crossroad | D31: 16.3 | E31: 13.5 | F31: 152.6 | G31: 11:29 - 11:31 | H31: 11:29:00 | I31: 11:31:00 | J31: 00:19 | K31: 00:21
B32: ostře vpravo | C32: Žulová crossroad | D32: 16.7 | E32: 13.9 | F32: 152.2 | G32: 11:29 - 11:31 | H32: 11:29:00 | I32: 11:31:00 | J32: 00:19 | K32: 00:21
C33: BERGOV | D33: =E33+2.8 -> 21.5 | E33: 18.7 | F33: 147.4 | G33: =TEXT(H33,"h:mm")&" - "&TEXT(I33,"h:mm") -> 11:36 - 11:39 | H33: =$C$7+J33 -> 11:36:00 | I33: =$C$7+K33 -> 11:39:00 | J33: 00:26 | K33: 00:29
C34: VLČICE | D34: =E34+2.8 -> 22.4 | E34: 19.6 | F34: 146.5 | G34: 11:38 - 11:40 | H34: 11:38:00 | I34: 11:40:00 | J34: 00:28 | K34: 00:30
C35: UHELNÁ | D35: =E35+2.8 -> 25.4 | E35: 22.6 | F35: 143.5 | G35: =TEXT(H35,"h:mm")&" - "&TEXT(I35,"h:mm") -> 11:42 - 11:45 | H35: =$C$7+J35 -> 11:42:00 | I35: =$C$7+K35 -> 11:45:00 | J35: 00:32 | K35: 00:35
B36: vpravo | C36: route 60 crossroad | D36: 25.7 | E36: 22.9 | F36: 143.2 | G36: 11:42 - 11:46 | H36: 11:42:00 | I36: 11:46:00 | J36: 00:32 | K36: 00:36
C37: JAVORNÍK | D37: 28.7 | E37: 25.9 | F37: 140.2 | G37: 11:47 - 11:50 | H37: 11:47:00 | I37: 11:50:00 | J37: 00:37 | K37: 00:40
B38: vpravo | C38: Bernartická/route457 crossroad | D38: 29 | E38: 26.2 | F38: 139.9 | G38: 11:47 - 11:51 | H38: 11:47:00 | I38: 11:51:00 | J38: 00:37 | K38: 00:41
C39: BERNARTICE | D39: =E39+2.8 -> 33.4 | E39: 30.6 | F39: 135.5 | G39: =TEXT(H39,"h:mm")&" - "&TEXT(I39,"h:mm") -> 11:53 - 11:58 | H39: =$C$7+J39 -> 11:53:00 | I39: =$C$7+K39 -> 11:58:00 | J39: 00:43 | K39: 00:48
B40: vpravo | C40: 457 route odbočka | D40: 33.9 | E40: 31.1 | F40: 135 | G40: 11:54 - 11:59 | H40: 11:54:00 | I40: 11:59:00 | J40: 00:44 | K40: 00:49
B41: railway crossing | C41: Horní Heřmanice | D41: 36.4 | E41: 33.6 | F41: 132.5 | G41: 11:58 - 12:03 | H41: 11:58:00 | I41: 12:03:00 | J41: 00:48 | K41: 00:53
C42: HORNÍ HEŘMANICE | D42: 37 | E42: 34.2 | F42: 131.9 | G42: 11:58 - 12:04 | H42: 11:58:00 | I42: 12:04:00 | J42: 00:48 | K42: 00:54
C43: VIDNAVA | D43: 42.2 | E43: 39.4 | F43: 126.7 | G43: 12:06 - 12:12 | H43: 12:06:00 | I43: 12:12:00 | J43: 00:56 | K43: 01:02
A44: SPRINT | B44: Mírové náměstí | D44: 42.7 | E44: 39.9 | F44: 126.2 | G44: 12:07 - 12:13 | H44: 12:07:00 | I44: 12:13:00 | J44: 00:57 | K44: 01:03
B45: doleva | C45: route 457 crossroad | D45: 49.2 | E45: 46.4 | F45: 119.7 | G45: 12:16 - 12:23 | H45: 12:16:00 | I45: 12:23:00 | J45: 01:06 | K45: 01:13
C46: VELKÉ KUNĚTICE | D46: 49.6 | E46: 46.8 | F46: 119.3 | G46: 12:16 - 12:23 | H46: 12:16:00 | I46: 12:23:00 | J46: 01:06 | K46: 01:13
B47: doprava | C47: route 457 crossroad | D47: 50.7 | E47: 47.9 | F47: 118.2 | G47: 12:18 - 12:25 | H47: 12:18:00 | I47: 12:25:00 | J47: 01:08 | K47: 01:15
C48: TEREZÍN | D48: 53.3 | E48: 50.5 | F48: 115.6 | G48: 12:22 - 12:29 | H48: 12:22:00 | I48: 12:29:00 | J48: 01:12 | K48: 01:19
B49: doprava | C49: route 457 odbočka | D49: 53.7 | E49: 50.9 | F49: 115.2 | G49: =TEXT(H49,"h:mm")&" - "&TEXT(I49,"h:mm") -> 12:22 - 12:30 | H49: =$C$7+J49 -> 12:22:00 | I49: =$C$7+K49 -> 12:30:00 | J49: 01:12 | K49: 01:20
C50: MIKULOVICE | D50: =E50+2.8 -> 56.2 | E50: 53.4 | F50: 112.7 | G50: 12:26 - 12:34 | H50: 12:26:00 | I50: 12:34:00 | J50: 01:16 | K50: 01:24
B51: doleva | C51: st. Nádražní | D51: 56.3 | E51: 53.5 | F51: 112.6 | G51: 12:26 - 12:34 | H51: 12:26:00 | I51: 12:34:00 | J51: 01:16 | K51: 01:24
B52: doprava | C52: Šíroký Brod/route 44 crossroad | D52: 56.5 | E52: 53.7 | F52: 112.4 | G52: 12:26 - 12:34 | H52: 12:26:00 | I52: 12:34:00 | J52: 01:16 | K52: 01:24
A53: otočka o 180 | B53: doleva | C53: crossroad | D53: 63.8 | E53: 61 | F53: 105.1 | G53: 12:37 - 12:46 | H53: 12:37:00 | I53: 12:46:00 | J53: 01:27 | K53: 01:36
B54: doleva | C54: crossroad | D54: 63.9 | E54: 61.1 | F54: 105 | G54: 12:37 - 12:46 | H54: 12:37:00 | I54: 12:46:00 | J54: 01:27 | K54: 01:36
B55: doprava | C55: crossroad | D55: 63.9 | E55: 61.6 | F55: 104.5 | G55: =TEXT(H55,"h:mm")&" - "&TEXT(I55,"h:mm") -> 12:38 - 12:47 | H55: =$C$7+J55 -> 12:38:00 | I55: =$C$7+K55 -> 12:47:00 | J55: =TEXT(E55/$C$10/24,"hh:mm") -> 01:28 | K55: =TEXT(E55/$C$11/24,"hh:mm") -> 01:37
B56: doleva | C56: crossroad | D56: 67.4 | E56: 64.6 | F56: =$E$85-E56 -> 101.5 | G56: 12:42 - 12:52 | H56: 12:42:00 | I56: 12:52:00 | J56: =TEXT(E56/$C$10/24,"hh:mm") -> 01:32 | K56: =TEXT(E56/$C$11/24,"hh:mm") -> 01:42
A57: GPM | B57: 806 m.n.m. | C57: rejvíz | D57: 71.2 | E57: 68.4 | F57: 97.7 | G57: 12:47 - 12:58 | H57: 12:47:00 | I57: 12:58:00 | J57: =TEXT(E57/$C$10/24,"hh:mm") -> 01:37 | K57: =TEXT(E57/$C$11/24,"hh:mm") -> 01:48
B58: vlevo | C58: route 453 crossroad | D58: 71.2 | E58: 68.4 | F58: 97.7 | G58: 12:47 - 12:58 | H58: 12:47:00 | I58: 12:58:00 | J58: =TEXT(E58/$C$10/24,"hh:mm") -> 01:37 | K58: =TEXT(E58/$C$11/24,"hh:mm") -> 01:48
C59: REJVÍZ | D59: 71.7 | E59: 68.9 | F59: 97.2 | G59: 12:48 - 12:58 | H59: 12:48:00 | I59: 12:58:00 | J59: =TEXT(E59/$C$10/24,"hh:mm") -> 01:38 | K59: =TEXT(E59/$C$11/24,"hh:mm") -> 01:48
B60: ostře vpravo! | C60: crossroad | D60: 75 | E60: =D60-2.8 -> 72.2 | F60: 93.9 | G60: =TEXT(H60,"h:mm")&" - "&TEXT(I60,"h:mm") -> 12:53 - 13:04 | H60: =$C$7+J60 -> 12:53:00 | I60: =$C$7+K60 -> 13:04:00 | J60: =TEXT(E60/$C$10/24,"hh:mm") -> 01:43 | K60: =TEXT(E60/$C$11/24,"hh:mm") -> 01:54
C61: ZLATÉ HORY DOLNÍ ÚDOLÍ | D61: 76.7 | E61: 73.9 | F61: 92.2 | G61: 12:55 - 13:06 | H61: 12:55:00 | I61: 13:06:00 | J61: 01:45 | K61: 01:56
B62: vpravo | C62: route 453 crossroad | D62: 77 | E62: 74.2 | F62: 91.9 | G62: 12:56 - 13:07 | H62: 12:56:00 | I62: 13:07:00 | J62: 01:46 | K62: 01:57
C63: HORNÍ ÚDOLÍ | D63: 78.8 | E63: 76 | F63: 90.1 | G63: 12:58 - 13:10 | H63: 12:58:00 | I63: 13:10:00 | J63: 01:48 | K63: 02:00
B64: vpravo | C64: route 452 crossroad | D64: 95.4 | E64: 92.6 | F64: 73.5 | G64: 13:22 - 13:36 | H64: 13:22:00 | I64: 13:36:00 | J64: =TEXT(E64/$C$10/24,"hh:mm") -> 02:12 | K64: =TEXT(E64/$C$11/24,"hh:mm") -> 02:26
A65: GPM | B65: 656 m.n.m. | C65: Jelení | D65: 97.6 | E65: 94.8 | F65: 71.3 | G65: 13:25 - 13:39 | H65: 13:25:00 | I65: 13:39:00 | J65: 02:15 | K65: 02:29
B66: vlevo | C66: route 451 crossroad | D66: 104.8 | E66: 102 | F66: 64.1 | G66: 13:35 - 13:51 | H66: 13:35:00 | I66: 13:51:00 | J66: 02:25 | K66: 02:41
B67: vpravo | C67: route 4526 crossroad | D67: 111.3 | E67: 108.5 | F67: 57.6 | G67: 13:45 - 14:01 | H67: 13:45:00 | I67: 14:01:00 | J67: 02:35 | K67: 02:51
B68: vpravo | C68: route 4525 | D68: 114 | E68: 111.2 | F68: 54.9 | G68: 13:48 - 14:05 | H68: 13:48:00 | I68: 14:05:00 | J68: 02:38 | K68: 02:55
A69: GPM | B69: 665 m.n.m. | C69: kostelní vrch | D69: 118.4 | E69: 115.6 | F69: 50.5 | G69: 13:55 - 14:12 | H69: 13:55:00 | I69: 14:12:00 | J69: 02:45 | K69: 03:02
B70: vlevo | C70: route 4525 crossroad | D70: 120.3 | E70: 117.5 | F70: 48.6 | G70: 13:57 - 14:15 | H70: 13:57:00 | I70: 14:15:00 | J70: 02:47 | K70: 03:05
B71: ostře vpravo | C71: route 4525 crossroad #2 | D71: 120.6 | E71: 117.8 | F71: 48.3 | G71: 13:58 - 14:16 | H71: 13:58:00 | I71: 14:16:00 | J71: 02:48 | K71: 03:06
B72: vlevo | C72: route 452 | D72: 120.6 | E72: 117.8 | F72: 48.3 | G72: 13:58 - 14:16 | H72: 13:58:00 | I72: 14:16:00 | J72: 02:48 | K72: 03:06
B73: ostře vpravo | C73: route 450 crossroad | D73: 126 | E73: 123.2 | F73: 42.9 | G73: 14:06 - 14:24 | H73: 14:06:00 | I73: 14:24:00 | J73: 02:56 | K73: 03:14
B74: rovně | C74: route 44515 | D74: 129.9 | E74: 127.1 | F74: 39 | G74: 14:11 - 14:30 | H74: 14:11:00 | I74: 14:30:00 | J74: 03:01 | K74: 03:20
B75: vpravo | C75: route 445 crossroad | D75: 136.3 | E75: 133.5 | F75: 32.6 | G75: 14:20 - 14:40 | H75: 14:20:00 | I75: 14:40:00 | J75: 03:10 | K75: 03:30
A76: SPRINT | B76: route 485 | D76: 137.4 | E76: 134.6 | F76: 31.5 | G76: 14:22 - 14:42 | H76: 14:22:00 | I76: 14:42:00 | J76: 03:12 | K76: 03:32
B77: rovně | C77: crossroad | D77: 142.5 | E77: 139.7 | F77: 26.4 | G77: 14:29 - 14:50 | H77: 14:29:00 | I77: 14:50:00 | J77: 03:19 | K77: 03:40
B78: rovně | C78: KARLOVA STUDÁNKA crossroad | D78: 143.4 | E78: 140.6 | F78: 25.5 | G78: 14:30 - 14:52 | H78: 14:30:00 | I78: 14:52:00 | J78: 03:20 | K78: 03:42
A79: GPM | B79: 1009 m.n.m. | C79: Lyra | D79: 146.5 | E79: 143.7 | F79: 22.4 | G79: 14:35 - 14:56 | H79: 14:35:00 | I79: 14:56:00 | J79: 03:25 | K79: 03:46
B80: vlevo | C80: route 450 crossroad | D80: 150.1 | E80: 147.3 | F80: 18.8 | G80: 14:40 - 15:02 | H80: 14:40:00 | I80: 15:02:00 | J80: 03:30 | K80: 03:52
B81: vpravo | C81: route 44 crossroad | D81: 160.7 | E81: 157.9 | F81: 8.2 | G81: 14:55 - 15:19 | H81: 14:55:00 | I81: 15:19:00 | J81: 03:45 | K81: 04:09
B82: rovně | C82: crossroad | D82: 166.5 | E82: 163.7 | F82: 2.4 | G82: 15:03 - 15:28 | H82: 15:03:00 | I82: 15:28:00 | J82: 03:53 | K82: 04:18
B83: rovně | C83: st. Smetanova | D83: 167.8 | E83: 165 | F83: 1.1 | G83: 15:05 - 15:30 | H83: 15:05:00 | I83: 15:30:00 | J83: 03:55 | K83: 04:20
B84: 3. výjezdem vlevo | C84: roundabout | D84: 168.7 | E84: 165.9 | F84: 0.2 | G84: 15:07 - 15:31 | H84: 15:07:00 | I84: 15:31:00 | J84: 03:57 | K84: 04:21
A85: FINISH | C85: Masarykovo nám. | D85: 168.9 | E85: 166.1 | F85: 0 | G85: 145:08 - 15:33 | H85: 15:08:00 | I85: 15:33:00 | J85: 03:57 | K85: 04:22
